fUSD/lending_fUSD_20260108
["ID","MTS","AMOUNT","RATE_DAILY","PERIOD"]
[400929109,1767865840666,-642.66,0.00013698,2]
[400929111,1767865840675,-642.66,0.00013698,2]
[400929114,1767865840686,-642.66,0.00013698,2]
[400929116,1767865840697,-591.02646287,0.00013698,2]
[400929118,1767865840710,-500.0,0.00013698,2]
[400929119,1767865840720,-500.0,0.00013698,2]
[400929122,1767865840730,-537.63319283,0.00013698,2]
[400929124,1767865840739,-500.0,0.00013698,2]
[400929126,1767865840748,-500.0,0.00013698,2]
[400929128,1767865840758,-500.0,0.00013698,2]
[400929130,1767865840767,-500.0,0.00013698,2]
[400929132,1767865840776,-545.19928252,0.00013698,2]
[400929134,1767865840786,-500.0,0.00013698,2]
[400929136,1767865840795,-500.0,0.00013698,2]
[400929138,1767865840804,-517.44328219,0.00013698,2]
[400929140,1767865840814,-500.0,0.00013698,2]
[400929142,1767865840823,-500.0,0.00013698,2]
[400929144,1767865840833,-500.0,0.00013698,2]
[400929146,1767865840842,-500.0,0.00013698,2]
[400929148,1767865840852,-500.0,0.00013698,2]
[400929150,1767865840861,-260.06429066,0.00013698,2]
[400929152,1767865840870,-518.47811979,0.00013698,2]
[400929154,1767865840879,-500.0,0.00013698,2]
[400929156,1767865840889,-500.0,0.00013698,2]
[400929158,1767865840898,-500.0,0.00013698,2]
[400929160,1767865840907,-500.0,0.00013698,2]
[400929162,1767865840916,-500.0,0.00013698,2]
[400929164,1767865840926,-500.0,0.00013698,2]
[400929166,1767865840935,-500.0,0.00013698,2]
[400929213,1767865841340,-498.15528863,0.00013698,2]
[400929216,1767865841365,-500.0,0.00013698,2]
[400929218,1767865841375,-502.50439874,0.00013698,2]
[400929220,1767865841384,-500.0,0.00013698,2]
[400929222,1767865841393,-500.0,0.00013698,2]
[400929224,1767865841402,-198.43935064,0.00013698,2]
[400929226,1767865841412,-500.0,0.00013698,2]
[400929228,1767865841422,-500.0,0.00013698,2]
[400929230,1767865841431,-500.0,0.00013698,2]
[400929232,1767865841441,-184.55624416,0.00013698,2]
[400929234,1767865841450,-569.18,0.00013698,2]
[400929236,1767865841460,-200.0,0.00013699,2]
[400929238,1767865841471,-2837.38,0.00013699,2]
[400929241,1767865841484,-9999.99,0.00013699,2]
[400929243,1767865841493,-1240.88,0.00013699,2]
[400929245,1767865841502,-1442.74102883,0.00013742,2]
[400929247,1767865841511,-426.0,0.00013747,2]
[400929249,1767865841520,-561.0,0.00013747,2]
[400929251,1767865841530,-1076.0,0.00013753,2]
[400929253,1767865841541,-426.26100549,0.00013802,2]
[400929255,1767865841552,-561.41835616,0.00013802,2]
[400929257,1767865841562,-1076.0,0.00013808,2]
[400929259,1767865841571,-164.07,0.00013826,2]
[400929261,1767865841580,-1076.0,0.00013862,2]
[400929263,1767865841590,-2028.45,0.00013883,2]
[400929265,1767865841599,-536.89418062,0.00013912,2]
[400929268,1767865841610,-500.0,0.00013912,2]
[400929270,1767865841619,-1076.0,0.00013917,2]
[400929272,1767865841628,-433.0,0.00013934,2]
[400929274,1767865841638,-1000.0,0.00013942,2]
[400929276,1767865841651,-1076.0,0.00013972,2]
[400929278,1767865841660,-500.0,0.00013973,2]
[400929280,1767865841669,-587.0,0.0001398,2]
[400929282,1767865841681,-587.0,0.0001398,2]
[400929284,1767865841691,-200.0,0.00014,2]
[400929286,1767865841701,-29199.4511288,0.00014008,2]
[400929288,1767865841710,-2351.0,0.00014025,2]
[400929290,1767865841719,-1076.0,0.00014027,2]
[400929292,1767865841729,-500.0,0.00014027,2]
[400929294,1767865841738,-1076.0,0.00014082,2]
[400929296,1767865841747,-2351.0,0.00014097,2]
[400929298,1767865841756,-1076.0,0.00014136,2]
[400929300,1767865841765,-2028.45,0.00014157,2]
[400929302,1767865841774,-1561.43224408,0.00014187,2]
[400929304,1767865841784,-1076.0,0.00014191,2]
[400929306,1767865841793,-23961.30225944,0.00014197,2]
[400929307,1767865841802,-1076.0,0.00014246,2]
[400929309,1767865841812,-1076.0,0.00014301,2]
[400929311,1767865841821,-1076.0,0.00014356,2]
[400929313,1767865841830,-151.0,0.00014357,2]
[400929315,1767865841839,-151.0,0.00014364,2]
[400929317,1767865841848,-151.0,0.00014364,2]
[400929319,1767865841857,-151.0,0.00014365,2]
[400929321,1767865841866,-199.19,0.00014365,2]
[400929323,1767865841875,-151.0,0.00014365,2]
[400929326,1767865841887,-2837.38,0.00014384,2]
[400929328,1767865841896,-1076.0,0.0001441,2]
[400929330,1767865841905,-2028.45,0.00014431,2]
[400929332,1767865841914,-234.79954054,0.00014459,2]
[400929334,1767865841923,-1076.0,0.00014465,2]
[400929336,1767865841932,-197.08599741,0.00014475,2]
[400929338,1767865841941,-1076.0,0.0001452,2]
[400929340,1767865841952,-1442.74102883,0.00014573,2]
[400929342,1767865841961,-1076.0,0.00014575,2]
[400929344,1767865841970,-29199.4511288,0.00014605,2]
[400929346,1767865841980,-1076.0,0.00014629,2]
[400929348,1767865841989,-600.0,0.00014655,2]
[400929350,1767865841998,-413.91,0.00014655,2]
[400929352,1767865842007,-500.0,0.00014658,2]
[400929353,1767865842017,-500.0,0.00014662,2]
[400929354,1767865842026,-1081.41648618,0.00014684,2]
[400929355,1767865842034,-2028.45,0.00014705,2]
[400929356,1767865842043,-322.6107,0.00014721,2]
[400929357,1767865842053,-1500.0,0.00014721,2]
[400929358,1767865842062,-1500.0,0.00014721,2]
[400929359,1767865842071,-500.0,0.00014721,2]
[400929360,1767865842080,-500.0,0.00014721,2]
[400929361,1767865842088,-500.0,0.00014721,2]
[400929362,1767865842098,-1500.0,0.00014721,2]
[400929363,1767865842107,-500.0,0.00014721,2]
[400929364,1767865842115,-500.0,0.00014721,2]
[400929365,1767865842124,-500.0,0.00014721,2]
[400929366,1767865842134,-1500.0,0.00014721,2]
[400929367,1767865842143,-500.0,0.00014721,2]
[400929369,1767865842151,-500.0,0.00014721,2]
[400929371,1767865842161,-500.0,0.00014721,2]
[400929373,1767865842170,-1500.0,0.00014721,2]
[400929375,1767865842179,-500.0,0.00014721,2]
[400929377,1767865842188,-500.0,0.00014721,2]
[400929379,1767865842197,-500.0,0.00014721,2]
[400929381,1767865842207,-1500.0,0.00014721,2]
[400929383,1767865842216,-500.0,0.00014721,2]
[400929385,1767865842225,-500.0,0.00014721,2]
[400929387,1767865842235,-500.0,0.00014721,2]
[400929389,1767865842244,-1500.0,0.00014721,2]
[400929391,1767865842253,-500.0,0.00014721,2]
[400929393,1767865842262,-498.61515312,0.00014721,2]
[400929396,1767865842273,-500.0,0.00014721,2]
[400929398,1767865842282,-250.0,0.00014721,2]
[400929399,1767865842291,-1500.0,0.00014721,2]
[400929402,1767865842300,-500.0,0.00014721,2]
[400929403,1767865842311,-500.0,0.00014721,2]
[400929405,1767865842320,-250.0,0.00014721,2]
[400929407,1767865842329,-1500.0,0.00014721,2]
[400929409,1767865842338,-500.0,0.00014721,2]
[400929411,1767865842347,-500.0,0.00014721,2]
[400929413,1767865842356,-321.91220307,0.00014721,2]
[400929415,1767865842365,-1500.0,0.00014721,2]
[400929417,1767865842374,-500.0,0.00014721,2]
[400929419,1767865842383,-500.0,0.00014721,2]
[400929421,1767865842392,-591.17858893,0.00014721,2]
[400929424,1767865842411,-908.82141107,0.00014721,2]
[400929426,1767865842421,-500.0,0.00014721,2]
[400929428,1767865842430,-500.0,0.00014721,2]
[400929430,1767865842440,-500.0,0.00014721,2]
[400929432,1767865842449,-1377.13522971,0.00014721,2]
[400929434,1767865842460,-574.12855637,0.00014721,2]
[400929436,1767865842469,-500.0,0.00014721,2]
[400929438,1767865842479,-620.0,0.00014721,2]
[400929440,1767865842490,-209.40437684,0.00014721,2]
[400929443,1767865842499,-578.20924308,0.00014721,2]
[400929444,1767865842508,-151.0,0.00014721,2]
[400929446,1767865842518,-151.0,0.00014721,2]
[400929448,1767865842527,-156.587,0.00014721,2]
[400929450,1767865842536,-162.380719,0.00014721,2]
[400929452,1767865842545,-500.0,0.00014721,2]
[400929454,1767865842555,-155.23859657,0.00014721,2]
[400929456,1767865842564,-622.14655061,0.00014721,2]
[400929458,1767865842574,-500.0,0.00014721,2]
[400929460,1767865842583,-500.0,0.00014721,2]
[400929462,1767865842592,-500.0,0.00014721,2]
[400929464,1767865842601,-500.0,0.00014721,2]
[400929466,1767865842610,-500.0,0.00014721,2]
[400929468,1767865842621,-500.0,0.00014721,2]
[400929470,1767865842630,-500.0,0.00014721,2]
[400929472,1767865842640,-500.0,0.00014721,2]
[400929474,1767865842653,-250.0,0.00014721,2]
[400929476,1767865842662,-500.0,0.00014721,2]
[400929478,1767865842672,-2000.0,0.00014721,2]
[400929480,1767865842681,-500.0,0.00014721,2]
[400929482,1767865842692,-500.0,0.00014721,2]
[400929484,1767865842702,-250.0,0.00014721,2]
[400929487,1767865842713,-2000.0,0.00014721,2]
[400929489,1767865842723,-500.0,0.00014721,2]
[400929491,1767865842738,-500.0,0.00014721,2]
[400929493,1767865842748,-270.73180541,0.00014721,2]
[400929495,1767865842758,-2000.0,0.00014721,2]
[400929497,1767865842767,-500.0,0.00014721,2]
[400929499,1767865842776,-2000.0,0.00014721,2]
[400929501,1767865842785,-500.0,0.00014721,2]
[400929503,1767865842794,-2000.0,0.00014721,2]
[400929505,1767865842803,-500.0,0.00014721,2]
[400929507,1767865842813,-2000.0,0.00014721,2]
[400929509,1767865842823,-500.0,0.00014721,2]
[400929511,1767865842832,-2000.0,0.00014721,2]
[400929512,1767865842841,-500.0,0.00014721,2]
[400929514,1767865842850,-2000.0,0.00014721,2]
[400929516,1767865842860,-500.0,0.00014721,2]
[400929518,1767865842869,-2000.0,0.00014721,2]
[400929520,1767865842878,-500.0,0.00014721,2]
[400929522,1767865842887,-2000.0,0.00014721,2]
[400929524,1767865842896,-169.1378307,0.00014721,2]
[400929526,1767865842905,-2000.0,0.00014721,2]
[400929528,1767865842915,-151.0,0.00014721,2]
[400929531,1767865842924,-23961.30225944,0.00014732,2]
[400929533,1767865842933,-225.48366902,0.0001476,2]
[400929536,1767865842942,-500.0,0.00014762,2]
[400929539,1767865842952,-642.66,0.00014762,2]
[400929541,1767865842960,-500.0,0.00014762,2]
[400929543,1767865842970,-500.0,0.00014762,2]
[400929545,1767865842979,-161.90897483,0.00014763,2]
[400929547,1767865842989,-164.12535237,0.00014763,2]
[400929549,1767865842999,-167.54885661,0.00014763,2]
[400929551,1767865843009,-175.24655238,0.00014763,2]
[400929553,1767865843018,-500.0,0.00014763,2]
[400929555,1767865843028,-500.0,0.00014763,2]
[400929557,1767865843038,-224.70175616,0.00014763,2]
[400929559,1767865843047,-500.22325222,0.00014763,2]
[400929562,1767865843057,-536.85793514,0.00014763,2]
[400929565,1767865843067,-500.0,0.00014763,2]
[400929568,1767865843077,-500.0,0.00014763,2]
[400929570,1767865843087,-500.0,0.00014763,2]
[400929572,1767865843096,-169.78239766,0.00014763,2]
[400929574,1767865843106,-552.68956986,0.00014763,2]
[400929576,1767865843115,-500.0,0.00014763,2]
[400929578,1767865843126,-500.0,0.00014763,2]
[400929580,1767865843135,-500.0,0.00014763,2]
[400929582,1767865843144,-500.0,0.00014763,2]
[400929585,1767865843154,-500.0,0.00014763,2]
[400929586,1767865843163,-500.0,0.00014763,2]
[400929588,1767865843172,-166.27119183,0.00014763,2]
[400929590,1767865843181,-500.0,0.00014763,2]
[400929593,1767865843191,-500.0,0.00014763,2]
[400929595,1767865843200,-169.07455586,0.00014763,2]
[400929597,1767865843210,-500.0,0.00014763,2]
[400929599,1767865843219,-500.0,0.00014763,2]
[400929600,1767865843229,-500.0,0.00014763,2]
[400929602,1767865843239,-500.0,0.00014763,2]
[400929605,1767865843248,-500.0,0.00014763,2]
[400929606,1767865843257,-500.0,0.00014763,2]
[400929608,1767865843266,-500.0,0.00014763,2]
[400929610,1767865843275,-216.92080784,0.00014763,2]
[400929612,1767865843285,-500.0,0.00014763,2]
[400929614,1767865843294,-501.56644481,0.00014763,2]
[400929616,1767865843304,-500.0,0.00014763,2]
[400929618,1767865843313,-500.0,0.00014763,2]
[400929620,1767865843323,-500.0,0.00014763,2]
[400929622,1767865843333,-500.0,0.00014763,2]
[400929624,1767865843342,-500.0,0.00014763,2]
[400929626,1767865843351,-500.0,0.00014763,2]
[400929628,1767865843360,-500.0,0.00014763,2]
[400929630,1767865843369,-500.29238726,0.00014763,2]
[400929632,1767865843379,-500.0,0.00014763,2]
[400929634,1767865843388,-500.0,0.00014763,2]
[400929636,1767865843397,-500.0,0.00014763,2]
[400929638,1767865843406,-500.0,0.00014763,2]
[400929640,1767865843416,-500.0,0.00014763,2]
[400929642,1767865843425,-2028.45,0.00014979,2]
[400929644,1767865843438,-500.0,0.00015068,2]
[400929646,1767865843448,-2837.38,0.00015068,2]
[400929648,1767865843457,-303.0,0.00015068,3]
[400929650,1767865843467,-500.0,0.00015123,2]
[400929652,1767865843477,-620.05,0.00015142,2]
[400929654,1767865843489,-500.0,0.00015178,2]
[400929656,1767865843499,-502.0,0.00015178,2]
[400929658,1767865843510,-29199.4511288,0.00015202,2]
[400929660,1767865843519,-765.26634379,0.0001521,2]
[400929662,1767865843530,-1347.91055099,0.0001521,2]
[400929664,1767865843539,-736.0,0.0001522,2]
[400929666,1767865843549,-522.31501888,0.00015232,2]
[400929668,1767865843558,-2028.45,0.00015253,2]
[400929670,1767865843568,-500.0,0.00015262,2]
[400929672,1767865843579,-150.0,0.00015262,2]
[400929674,1767865843588,-23961.30225944,0.00015267,2]
[400929676,1767865843598,-595.37131296,0.00015269,2]
[400929678,1767865843607,-217.15233878,0.00015269,2]
[400929680,1767865843616,-151.0,0.00015269,2]
[400929682,1767865843628,-157.22325972,0.00015269,2]
[400929684,1767865843638,-23366.1324032,0.00015274,2]
[400929686,1767865843650,-921300.9389016,0.0001529,2]
[400929688,1767865843660,-500.0,0.0001531,2]
[400929690,1767865843669,-1000.0,0.0001531,2]
[400929692,1767865843678,-1000.0,0.0001531,2]
[400929694,1767865843689,-539.89725373,0.0001531,2]
[400929696,1767865843698,-1000.0,0.0001531,2]
[400929698,1767865843707,-503.33948311,0.0001531,2]
[400929701,1767865843716,-1000.0,0.0001531,2]
[400929704,1767865843727,-1000.0,0.0001531,2]
[400929706,1767865843738,-1000.0,0.0001531,2]
[400929709,1767865843747,-1000.0,0.0001531,2]
[400929712,1767865843756,-500.44132788,0.0001531,2]
[400929716,1767865843766,-912.45872532,0.0001531,2]
[400929718,1767865843775,-1000.0,0.0001531,2]
[400929721,1767865843784,-1000.0,0.0001531,2]
[400929724,1767865843793,-1000.0,0.0001531,2]
[400929727,1767865843803,-1000.0,0.0001531,2]
[400929729,1767865843812,-1000.0,0.0001531,2]
[400929731,1767865843826,-500.3780208,0.0001531,2]
[400929733,1767865843835,-1000.0,0.0001531,2]
[400929735,1767865843845,-812.00908556,0.0001531,2]
[400929737,1767865843854,-332.64752003,0.0001531,2]
[400929739,1767865843864,-1000.0,0.0001531,2]
[400929741,1767865843874,-712.65120656,0.0001531,2]
[400929743,1767865843883,-166.61911688,0.0001531,2]
[400929745,1767865843893,-1000.0,0.0001531,2]
[400929747,1767865843902,-1000.0,0.0001531,2]
[400929749,1767865843912,-415.93260674,0.0001531,2]
[400929751,1767865843922,-1000.0,0.0001531,2]
[400929753,1767865843932,-1000.0,0.0001531,2]
[400929755,1767865843942,-1000.0,0.0001531,2]
[400929757,1767865843951,-438.84534231,0.0001531,2]
[400929759,1767865843960,-1000.0,0.0001531,2]
[400929761,1767865843970,-1000.0,0.0001531,2]
[400929763,1767865843979,-1000.0,0.0001531,2]
[400929765,1767865843988,-500.0,0.00015317,2]
[400929767,1767865843997,-250.0,0.00015317,2]
[400929769,1767865844006,-823.0,0.00015353,2]
[400929771,1767865844015,-823.0,0.00015353,2]
[400929773,1767865844025,-312.84,0.00015354,2]
[400929775,1767865844034,-632.40272583,0.00015372,2]
[400929777,1767865844044,-500.0,0.00015397,2]
[400929779,1767865844053,-1442.74102883,0.00015405,2]
[400929781,1767865844063,-3292.0,0.00015428,2]
[400929783,1767865844074,-3292.0,0.0001548,2]
[400929785,1767865844083,-2028.45,0.00015527,2]
[400929787,1767865844092,-1208.89,0.00015613,2]
[400929789,1767865844101,-1347.91055096,0.00015748,2]
[400929791,1767865844110,-2837.38,0.00015753,2]
[400929793,1767865844120,-33580.3823,0.00015774,2]
[400929795,1767865844130,-29199.4511288,0.00015799,2]
[400929797,1767865844140,-2028.45,0.00015801,2]
[400929799,1767865844149,-23961.30225944,0.00015803,2]
[400929801,1767865844158,-617.40005154,0.00015817,2]
[400929803,1767865844168,-225.18697532,0.00015817,2]
[400929805,1767865844177,-151.0,0.00015817,2]
[400929807,1767865844187,-1009.92734084,0.00015858,2]
[400929809,1767865844196,-1500.0,0.00015858,2]
[400929811,1767865844205,-1500.0,0.00015858,2]
[400929813,1767865844215,-1500.0,0.00015858,2]
[400929815,1767865844224,-1530.62564826,0.00015858,2]
[400929817,1767865844233,-1500.0,0.00015858,2]
[400929819,1767865844242,-822.81176918,0.00015858,2]
[400929821,1767865844251,-1500.0,0.00015858,2]
[400929823,1767865844260,-413.69875704,0.00015858,2]
[400929825,1767865844269,-1001.84542925,0.00015858,2]
[400929827,1767865844278,-1500.0,0.00015858,2]
[400929829,1767865844287,-1500.0,0.00015858,2]
[400929831,1767865844296,-1511.09296657,0.00015858,2]
[400929833,1767865844305,-1158.23019616,0.00015858,2]
[400929835,1767865844315,-556.63084022,0.00015858,2]
[400929837,1767865844325,-985.97149483,0.00015858,2]
[400929839,1767865844334,-1500.0,0.00015858,2]
[400929841,1767865844345,-1500.0,0.00015858,2]
[400929843,1767865844354,-1500.0,0.00015858,2]
[400929845,1767865844364,-1500.0,0.00015858,2]
[400929847,1767865844373,-1500.0,0.00015858,2]
[400929849,1767865844383,-1500.0,0.00015858,2]
[400929851,1767865844392,-600.0,0.00015886,2]
[400929853,1767865844402,-413.91,0.00015886,2]
[400929855,1767865844412,-9140.78311227,0.000159,2]
[400929857,1767865844421,-1000.0,0.00015918,2]
[400929859,1767865844431,-500.0,0.00015996,2]
[400929861,1767865844440,-642.66,0.00015996,2]
[400929863,1767865844450,-500.0,0.00015996,2]
[400929865,1767865844459,-500.0,0.00015996,2]
[400929867,1767865844468,-200.0,0.00016,2]
[400929869,1767865844478,-12228.94,0.0001601,2]
[400929871,1767865844488,-1000.0,0.00016074,2]
[400929873,1767865844497,-2028.45,0.00016075,2]
[400929874,1767865844507,-334.5472959,0.0001609,2]
[400929875,1767865844516,-642.94,0.0001609,2]
[400929876,1767865844526,-500.0,0.00016099,2]
[400929877,1767865844535,-642.66,0.00016099,2]
[400929879,1767865844545,-500.0,0.00016099,2]
[400929881,1767865844554,-513.85826363,0.00016099,2]
[400929883,1767865844563,-9999.99,0.00016116,2]
[400929885,1767865844573,-180.0,0.00016128,2]
[400929887,1767865844582,-1442.74102883,0.00016237,2]
[400929889,1767865844591,-266.0,0.00016247,2]
[400929891,1767865844602,-157.72323008,0.00016267,2]
[400929893,1767865844611,-1347.91055096,0.00016286,2]
[400929895,1767865844620,-1000.0,0.00016309,2]
[400929897,1767865844630,-500.0,0.00016337,2]
[400929899,1767865844640,-642.66,0.00016337,2]
[400929901,1767865844653,-500.0,0.00016337,2]
[400929903,1767865844664,-23961.30225944,0.00016338,2]
[400929905,1767865844673,-2028.45,0.00016348,2]
[400929907,1767865844683,-640.24385345,0.00016365,2]
[400929909,1767865844693,-263.14162042,0.00016365,2]
[400929911,1767865844702,-175.29912762,0.00016365,2]
[400929913,1767865844711,-29199.4511288,0.00016396,2]
[400929915,1767865844723,-833.0,0.000164,2]
[400929917,1767865844733,-162.0,0.000164,2]
[400929919,1767865844742,-162.0,0.000164,2]
[400929922,1767865844752,-162.0,0.000164,2]
[400929924,1767865844761,-162.0,0.000164,2]
[400929926,1767865844770,-833.0,0.000164,2]
[400929928,1767865844779,-162.0,0.000164,2]
[400929930,1767865844788,-833.0,0.000164,2]
[400929932,1767865844798,-162.0,0.000164,2]
[400929934,1767865844807,-833.0,0.000164,2]
[400929936,1767865844816,-304.30680198,0.00016404,2]
[400929938,1767865844825,-2000.0,0.00016406,2]
[400929940,1767865844834,-2000.0,0.00016406,2]
[400929942,1767865844843,-453.03832283,0.00016406,2]
[400929944,1767865844852,-665.71915277,0.00016406,2]
[400929946,1767865844861,-2000.0,0.00016406,2]
[400929948,1767865844870,-2000.0,0.00016406,2]
[400929950,1767865844879,-2000.0,0.00016406,2]
[400929952,1767865844888,-1004.82287623,0.00016406,2]
[400929954,1767865844898,-2000.0,0.00016406,2]
[400929956,1767865844907,-2000.0,0.00016406,2]
[400929958,1767865844916,-1133.20600999,0.00016406,2]
[400929960,1767865844925,-2000.0,0.00016406,2]
[400929962,1767865844934,-877.66780599,0.00016406,2]
[400929964,1767865844944,-429.10137339,0.00016437,2]
[400929966,1767865844953,-642.66,0.00016437,2]
[400929968,1767865844962,-363.73176274,0.00016437,2]
[400929970,1767865844971,-500.0,0.00016437,2]
[400929972,1767865844980,-2273.42483909,0.00016438,2]
[400929974,1767865844989,-2273.42483909,0.00016438,2]
[400929976,1767865844999,-2273.42483909,0.00016438,2]
[400929978,1767865845008,-2273.42483909,0.00016438,2]
[400929980,1767865845018,-2273.42483909,0.00016438,2]
[400929982,1767865845027,-2273.42483909,0.00016438,2]
[400929984,1767865845037,-2273.42483909,0.00016438,2]
[400929986,1767865845046,-2273.42483909,0.00016438,2]
[400929988,1767865845056,-2273.42483909,0.00016438,2]
[400929990,1767865845065,-2273.42483909,0.00016438,2]
[400929992,1767865845075,-2273.42483909,0.00016438,2]
[400929994,1767865845085,-2273.42483909,0.00016438,2]
[400929996,1767865845094,-2273.42483909,0.00016438,2]
[400929998,1767865845103,-2273.42483909,0.00016438,2]
[400930000,1767865845113,-2273.42483909,0.00016438,2]
[400930002,1767865845122,-2273.42483909,0.00016438,2]
[400930004,1767865845131,-2273.42483909,0.00016438,2]
[400930006,1767865845140,-2273.42483909,0.00016438,2]
[400930008,1767865845149,-2273.42483909,0.00016438,2]
[400930010,1767865845158,-2273.42483909,0.00016438,2]
[400930012,1767865845167,-2273.42483909,0.00016438,2]
[400930014,1767865845176,-2273.42483909,0.00016438,2]
[400930016,1767865845185,-2273.42483909,0.00016438,2]
[400930018,1767865845194,-2273.42483909,0.00016438,2]
[400930020,1767865845204,-2273.42483909,0.00016438,2]
[400930022,1767865845213,-2273.42483909,0.00016438,2]
[400930024,1767865845222,-2273.42483909,0.00016438,2]
[400930026,1767865845232,-2273.42483909,0.00016438,2]
[400930028,1767865845241,-2273.42483909,0.00016438,2]
[400930030,1767865845250,-2273.42483909,0.00016438,2]
[400930032,1767865845260,-2273.42483909,0.00016438,2]
[400930034,1767865845269,-2273.42483909,0.00016438,2]
[400930036,1767865845279,-2273.42483909,0.00016438,2]
[400930065,1767865845547,-2273.42483909,0.00016438,2]
[400930068,1767865845559,-2273.42483909,0.00016438,2]
[400930070,1767865845569,-2273.42483909,0.00016438,2]
[400930072,1767865845578,-2273.42483909,0.00016438,2]
[400930074,1767865845587,-2273.42483909,0.00016438,2]
[400930075,1767865845596,-2273.42483909,0.00016438,2]
[400930077,1767865845606,-2273.42483909,0.00016438,2]
[400930079,1767865845615,-2273.42483909,0.00016438,2]
[400930081,1767865845625,-2273.42483909,0.00016438,2]
[400930084,1767865845634,-2273.42483909,0.00016438,2]
[400930086,1767865845645,-2273.42483909,0.00016438,2]
[400930088,1767865845658,-2273.42483909,0.00016438,2]
[400930090,1767865845667,-2273.42483909,0.00016438,2]
[400930091,1767865845676,-2273.42483909,0.00016438,2]
[400930094,1767865845686,-2273.42483909,0.00016438,2]
[400930096,1767865845697,-2273.42483909,0.00016438,2]
[400930098,1767865845707,-2273.42483909,0.00016438,2]
[400930099,1767865845716,-2273.42483909,0.00016438,2]
[400930102,1767865845725,-2273.42483909,0.00016438,2]
[400930103,1767865845735,-2273.42483909,0.00016438,2]
[400930105,1767865845744,-2273.42483909,0.00016438,2]
[400930107,1767865845754,-2273.42483909,0.00016438,2]
[400930109,1767865845763,-2273.42483909,0.00016438,2]
[400930112,1767865845773,-2273.42483909,0.00016438,2]
[400930113,1767865845783,-2273.42483909,0.00016438,2]
[400930115,1767865845792,-2273.42483909,0.00016438,2]
[400930117,1767865845803,-2273.42483909,0.00016438,2]
[400930120,1767865845812,-2273.42483909,0.00016438,2]
[400930122,1767865845822,-2273.42483909,0.00016438,2]
[400930124,1767865845832,-2203.47330557,0.00016438,2]
[400930126,1767865845842,-2203.47330557,0.00016438,2]
[400930128,1767865845851,-2203.47330557,0.00016438,2]
[400930130,1767865845860,-2203.47330557,0.00016438,2]
[400930132,1767865845869,-2203.47330557,0.00016438,2]
[400930134,1767865845879,-2203.47330557,0.00016438,2]
[400930136,1767865845888,-2203.47330557,0.00016438,2]
[400930138,1767865845897,-2203.47330557,0.00016438,2]
[400930140,1767865845906,-2203.47330557,0.00016438,2]
[400930142,1767865845916,-2203.47330557,0.00016438,2]
[400930144,1767865845925,-2203.47330557,0.00016438,2]
[400930145,1767865845935,-2203.47330557,0.00016438,2]
[400930148,1767865845944,-2203.47330557,0.00016438,2]
[400930149,1767865845953,-2203.47330557,0.00016438,2]
[400930151,1767865845963,-2203.47330557,0.00016438,2]
[400930154,1767865845974,-2203.47330557,0.00016438,2]
[400930156,1767865845984,-2203.47330557,0.00016438,2]
[400930158,1767865845993,-2203.47330557,0.00016438,2]
[400930160,1767865846002,-2203.47330557,0.00016438,2]
[400930162,1767865846012,-2203.47330557,0.00016438,2]
[400930164,1767865846022,-2203.47330557,0.00016438,2]
[400930166,1767865846031,-2203.47330557,0.00016438,2]
[400930168,1767865846041,-2203.47330557,0.00016438,2]
[400930170,1767865846051,-2203.47330557,0.00016438,2]
[400930172,1767865846059,-2203.47330557,0.00016438,2]
[400930174,1767865846069,-500.0,0.00016438,2]
[400930176,1767865846078,-2203.47330545,0.00016438,2]
[400930178,1767865846087,-2837.38,0.00016438,2]
[400930179,1767865846096,-800.0,0.00016438,2]
[400930182,1767865846105,-500.0,0.00016493,2]